Cogmind - Beta 17.1 @@@ ROGUE MODE // 2026.09.08 @ 14:32:34 Player: 4R-ZE3 Result: Self-destructed Performance ------------- Evolutions (5) 2500 Regions Visited (18) 3600 Robots Destroyed (330) 1650 Value Destroyed (13131) 13131 Prototype IDs (40) 800 Alien Tech Used (1) 200 Bonus (4993) 4993 TOTAL SCORE: 26874 Bonus ------- High Alert Combat Kills 1375 Follower Combat Kills 1582 Entered Garrisons 200 Network Hubs Disabled 200 Met Data Miner 300 Acquired ECA 300 Built Enhanced Grunts 300 A7 Reached Mainframe 300 Met R17 at Cetus 500 Friendly Fire -64 Cogmind --------- Core Integrity 250/1000 Matter 252/300 Energy 37/100 System Corruption 41% Temperature Hot (223) Movement Core (1700) Ox33 Location -5/Hub_04(d) Parts ------- > --- POWER (2) -------- (None) > --- PROPULSION (4) --- (None) > --- UTILITY (8) ------ Advanced Heat Sink Advanced Cooling System Huge Storage Unit Enhanced Optical Array Improved Signal Interpreter 0b10 Decoder Chip [Scout] Core Analyzer > --- WEAPON (4) ------- Cooled Pulse Rifle Wave Gun Wave Gun Wave Gun > --- INVENTORY (25) --- Advanced Heat Sink Structural Scanner Improved Trap Scanner Improved Particle Charger Improved Transmission Jammer Focal Shield Experimental Thermal Shield Wave Gun Long-range Missile Launcher Multitool DRS Beacon (Ready) Peak State ------------ > --- POWER ------------ Quantum Reactor Meta Core > --- PROPULSION ------- Armored Medium Treads Centrium Heavy Treads Centrium Heavy Treads > --- UTILITY ---------- Cryofiber Web Advanced Heat Sink Advanced Heat Sink Huge Storage Unit Enhanced Optical Array Improved Signal Interpreter 0b10 Decoder Chip [Scout] Core Analyzer Centrium Medium Armor Plating > --- WEAPON ----------- Wave Gun Advanced Variable Charge Gun Advanced Variable Charge Gun Advanced Variable Charge Gun Advanced Variable Charge Gun > --- INVENTORY -------- Quantum Reactor Quantum Reactor Cryofiber Web Advanced Heat Sink Advanced Cooling System Structural Scanner Improved Trap Scanner Improved Particle Charger Improved Transmission Jammer Centrium Medium Armor Plating Medium Reactive Plating Focal Shield Thermal Shield EM Shield Wave Gun Wave Gun Heavy Beamcaster Heavy Beamcaster Phase Cannon Compact Ion Cannon Advanced KE Penetrator Long-range Missile Launcher Multitool DRS Beacon [Rating: 155] Favorites ----------- Power Improved Deuterium Engine Engine Improved Deuterium Engine Power Core Neutrino Core Reactor Quantum Reactor Propulsion Improved Treads Treads Improved Treads Wheel Wheel Utility Huge Storage Unit Device Improved Heat Sink Storage Huge Storage Unit Processor Advanced Targeting Computer Hackware Hacking Suite Protection Medium Reactive Plating Weapon Heavy Laser Energy Gun Heavy Laser Energy Cannon Phase Cannon Ballistic Gun Battle Rifle Ballistic Cannon Battle Cannon Launcher Long-range Missile Launcher Special Weapon Multitool Impact Weapon Great Maul Build | -11 -10 -10 -8 -8 -8 -7 -7 -7 -7 -6 -6 -6 -6 -5 -5 -5 -5 -5 ------- Run | Yrd Mat Sub Mat Gar Mat Fac Low Low Dat Pro Fac Low Low Fac Ext Cet Arc Hub Slots Evolved 10 | . . . 4 . . 2 . . . . 2 . . 2 . . . . Power 1 | . . . . . . . . . . . 1 . . . . . . . Propulsion 2 | . . . 1 . . . . . . . 1 . . . . . . . Utility 6 | . . . 2 . . 2 . . . . . . . 2 . . . . Weapon 1 | . . . 1 . . . . . . . . . . . . . . . Parts Attached 235 | 6 . 11 19 18 17 35 3 9 . 13 36 5 2 16 15 10 3 17 Power 34 | 1 . 2 1 1 1 4 2 1 . 2 5 . . 3 5 2 . 4 Engine 17 | 1 . 2 1 . . 3 2 1 . 2 3 . . 1 1 . . . Core 12 | . . . . 1 1 1 . . . . 2 . . 2 4 1 . . Reactor 5 | . . . . . . . . . . . . . . . . 1 . 4 Propulsion 55 | 2 . 1 4 3 7 10 . 1 . 1 10 1 2 6 5 2 . . Treads 40 | 2 . 1 4 3 7 9 . 1 . 1 1 1 2 1 5 2 . . Leg . | . . . . . . . . . . . . . . . . . . . Wheel 15 | . . . . . . 1 . . . . 9 . . 5 . . . . Hover . | . . . . . . . . . . . . . . . . . . . Flight . | . . . . . . . . . . . . . . . . . . . Utility 74 | 1 . 2 10 6 6 8 . 4 . 6 15 1 . 4 1 2 2 6 Device 47 | . . 1 3 5 4 4 . 4 . 4 11 . . 2 1 2 1 5 Storage 4 | 1 . 1 1 . . . . . . . 1 . . . . . . . Processor 7 | . . . . . . 2 . . . 1 2 . . 2 . . . . Hackware 3 | . . . 1 . 2 . . . . . . . . . . . . . Protection 13 | . . . 5 1 . 2 . . . 1 1 1 . . . . 1 1 Artifact . | . . . . . . . . . . . . . . . . . . . Weapon 72 | 2 . 6 4 8 3 13 1 3 . 4 6 3 . 3 4 4 1 7 Energy Gun 55 | 1 . 3 2 6 2 11 1 3 . 2 6 2 . 3 2 4 1 6 Energy Cannon 8 | . . 2 . . 1 1 . . . 1 . 1 . . 2 . . . Ballistic Gun 4 | 1 . . 2 . . . . . . . . . . . . . . 1 Ballistic Cannon 1 | . . 1 . . . . . . . . . . . . . . . . Launcher 2 | . . . . . . 1 . . . 1 . . . . . . . . Special Weapon 1 | . . . . 1 . . . . . . . . . . . . . . Impact Weapon 1 | . . . . 1 . . . . . . . . . . . . . . Slashing Weapon . | . . . . . . . . . . . . . . . . . . . Piercing Weapon . | . . . . . . . . . . . . . . . . . . . Special Melee Weapon . | . . . . . . . . . . . . . . . . . . . Unidentified Prototypes 18 | . . . 1 . 1 4 . . . . 1 1 . 1 1 2 1 5 Corrupted Parts 3 | . . . . . . . . . . . . . . . . 1 1 1 System Corruption 19 | . . . . . . . . . . . . . . . . 7 6 6 Parts Lost 104 | . . 2 3 9 3 16 1 9 . 8 13 . 7 5 3 1 . 24 Power 16 | . . 1 . 1 1 2 . . . 1 3 . 1 1 1 . . 4 Propulsion 30 | . . . 1 3 . 6 . 2 . 2 7 . 3 2 1 . . 3 Utility 32 | . . . 2 3 1 4 . 5 . 3 1 . 2 . 1 1 . 9 Weapon 26 | . . 1 . 2 1 4 1 2 . 2 2 . 1 2 . . . 8 Highest Loss Streak 21 | . . 1 1 5 1 5 1 5 . 4 4 . 7 3 1 1 . 21 To Critical Strikes . | . . . . . . . . . . . . . . . . . . . Average Backups 22 | . 2 7 19 23 24 24 24 22 24 23 23 23 23 21 23 23 23 22 Power 2 | . 1 . 1 3 2 3 3 4 5 4 2 1 2 1 1 1 2 1 Propulsion 2 | . . . 1 2 3 4 6 4 4 3 . 2 1 2 3 2 . . Utility 8 | . . . 6 7 8 6 6 5 5 5 11 13 13 10 11 10 12 12 Weapon 6 | . 1 3 7 9 8 7 7 6 8 7 6 5 5 5 6 7 8 7 Tool/Special . | . . . . . . . . . . . . . . . . . . . Unused Backups 43 | . . 4 4 1 5 5 2 1 . 1 6 . . 1 4 5 1 3 Power 8 | . . 1 . 1 1 1 2 . . . . . . . 1 1 . . Propulsion 4 | . . . . . . 1 . . . . . . . . 1 2 . . Utility 16 | . . . 2 . 2 2 . 1 . 1 4 . . . . 1 1 2 Weapon 14 | . . 2 2 . 2 1 . . . . 2 . . 1 2 1 . 1 Tool/Special 1 | . . 1 . . . . . . . . . . . . . . . . Average Slot Usage (%) 96 | . 85 91 95 99 99 99 100 97 78 96 96 99 97 92 99 96 88 88 Engine 6 | . 14 13 9 1 . 6 7 7 7 7 12 12 11 8 2 . . . Core 2 | . . . . 7 8 . . . . . . . . . 7 8 4 4 Treads 18 | . 28 28 26 26 27 22 23 22 23 22 10 . 6 4 15 19 14 13 Wheel 4 | . . . . . . . . . . . 11 24 16 12 6 . . . Device 15 | . . 6 9 20 22 15 15 22 30 24 14 11 11 15 15 16 15 16 Storage 7 | . 14 14 9 9 9 7 7 7 7 7 6 6 6 5 5 4 4 4 Processor 12 | . . . . . . 8 15 13 7 9 18 18 17 21 22 20 19 19 Hackware 1 | . . . 1 . 4 10 . . . . . . . . . . . . Protection 1 | . . . 12 6 . 1 7 . . 1 . . . . . . 1 2 Energy Gun 17 | . 14 14 3 21 26 22 23 23 2 21 15 19 24 18 8 6 20 21 Energy Cannon 4 | . . 7 14 4 . . . . . . 3 2 . 3 13 15 2 . Peak Build Rating 155 | 6 6 15 32 34 34 47 45 48 48 54 63 63 62 83 92 147 155 155 Average Rating 55 | 4 6 10 27 30 30 42 43 44 36 50 55 57 57 71 87 111 150 141 On Entrance 52 | . 6 6 15 32 31 33 45 44 48 48 53 59 63 45 77 92 147 155 Avg Prop Armor Cover (%) 11 | . . . . . . 14 . . . . 16 7 8 8 13 . . . Naked Turns . | . . . . . . . . . . . . . . . . . . . Heaviest Build 149 | 14 14 62 110 110 102 127 120 110 110 128 138 141 118 137 149 140 141 147 Greatest Support 187 | 40 40 40 65 65 62 68 66 66 66 66 94 52 63 40 93 187 187 187 Greatest Overweight (x) 13 | . . 1 1 1 1 6 1 1 1 2 11 3 11 13 5 1 . . Average Overweight (x) 1 | . . . 1 1 1 1 1 1 1 1 2 2 3 4 3 . . . Largest Inventory Capacity 25 | 8 8 20 25 25 25 25 25 25 25 25 25 25 25 25 25 25 25 25 Average Capacity 23 | 7 8 10 20 25 25 25 25 25 25 25 25 25 25 25 25 25 25 25 Most Carried 25 | 2 2 15 24 25 25 25 25 25 25 25 25 25 25 25 25 25 25 25 Average Carried 22 | 1 2 8 19 23 24 24 24 22 25 24 24 24 24 22 24 24 24 23 Final Capacity 25 | 8 8 20 25 25 25 25 25 25 25 25 25 25 25 25 25 25 25 25 Final Carried 25 | 2 2 15 24 25 24 25 25 25 25 24 25 25 23 24 25 25 24 11 Class Distribution -------------------- 24% | Scavenger-Gunner 19% | Scavenger-Skirmisher 15% | Gunner 8% | Scavenger-Tank 7% | Hacker-Gunner 6% | Mutant 5% | Commander-Gunner 3% | Skirmisher Dominant Class ---------------- Mutant | -10/Materials Mutant | -10/Subcaves Scavenger-Tank | -8/Materials Scavenger-Tank | -8/Garrison Scavenger-Gunner | -8/Materials Hacker-Gunner | -7/Factory Gunner | -7/Lower Caves Gunner | -7/Lower Caves Mutant | -7/Data Miner Gunner | -6/Proximity Caves Scavenger-Skirmisher | -6/Factory Scavenger-Skirmisher | -6/Lower Caves Scavenger-Skirmisher | -6/Lower Caves Scavenger-Skirmisher | -5/Factory Scavenger-Gunner | -5/Extension Commander-Gunner | -5/Cetus Commander-Tank | -5/Archives Scavenger-Tank | -5/Hub_04(d) Resources | -11 -10 -10 -8 -8 -8 -7 -7 -7 -7 -6 -6 -6 -6 -5 -5 -5 -5 -5 ----------- Run | Yrd Mat Sub Mat Gar Mat Fac Low Low Dat Pro Fac Low Low Fac Ext Cet Arc Hub Matter Collected 5903 | 206 . 277 290 390 315 959 137 127 . 456 1199 354 25 305 405 130 65 263 Remotely . | . . . . . . . . . . . . . . . . . . . Salvage Created 14996 | . . 495 753 1232 1097 2121 323 649 . 581 2322 216 . 1083 986 218 467 2453 Parts 640 | . . 31 28 77 59 84 3 21 . 17 108 10 . 35 40 7 23 97 Haulers Intercepted 3 | . . . 1 . 2 . . . . . . . . . . . . . Recyclers Shooed 9 | . . . . . . . . . . . 3 . . 5 1 . . . Parts Field Recycled . | . . . . . . . . . . . . . . . . . . . Retrieved Matter . | . . . . . . . . . . . . . . . . . . . Parts Self-Destructed 72 | . . 13 . . . . 8 20 . 19 . 12 . . . . . . Prevented . | . . . . . . . . . . . . . . . . . . . Parts Restored . | . . . . . . . . . . . . . . . . . . . Kills | -11 -10 -10 -8 -8 -8 -7 -7 -7 -7 -6 -6 -6 -6 -5 -5 -5 -5 -5 ------- Run | Yrd Mat Sub Mat Gar Mat Fac Low Low Dat Pro Fac Low Low Fac Ext Cet Arc Hub Combat Hostiles Destroyed 259 | . . 13 16 34 21 38 7 15 . 18 28 7 . 8 17 3 2 32 Guns 188 | . . 9 7 32 20 33 7 13 . 5 21 1 . 7 5 . . 28 Cannons 22 | . . 3 6 2 . . . . . . . . . . 8 2 1 . AOE 22 | . . . . . . . . . . 12 . 6 . . 4 . . . Classes Destroyed 19 | . . 4 2 3 2 3 . 2 . 1 1 . . . 1 . . . Worker 15 | . . . . . . 1 . . . . 9 . . 2 . . . 3 Builder 12 | . . . . . 2 . . . . . 7 . . 3 . . . . Hauler 3 | . . . 1 . 2 . . . . . . . . . . . . . Recycler 13 | . . . . . 1 2 . . . . 5 . . 5 . . . . Operator 10 | . . . . . . 1 . . . . . . . . . . 9 . Drone 1 | . . . . . . . . . . 1 . . . . . . . . Watcher 15 | . . . . 1 1 5 . . . . 4 . . 2 1 . . 1 Swarmer 72 | . . 3 3 14 4 7 3 5 . 8 7 7 . 4 4 . . 3 Grunt 88 | . . 1 10 13 12 17 . 6 . 6 4 . . 3 5 . . 11 Brawler 1 | . . . . . . . . 1 . . . . . . . . . . Duelist 6 | . . . . 3 . 1 . 2 . . . . . . . . . . Sentry 32 | . . 1 2 2 5 5 . 1 . . 1 . . . 7 . 2 6 Specialist 9 | . . . . 2 . . . . . . 4 . . . . . . 3 Hunter 7 | . . . 1 . . 2 . . . 3 . . . 1 . . . . Programmer 22 | . . . . . . 6 . . . . 11 . . . . . . 5 Heavy 2 | . . . . . . . . . . . 1 . . . . . . 1 Behemoth 1 | . . . . . . . . . . . . . . . 1 . . . Cetus Guard 3 | . . . . . . . . . . . . . . . . 3 . . Enhanced Grunt 3 | . . . . . . . . . . . . . . . . . . 3 Lightning 3 | . . . . . . . . . . . . . . . . . . 3 Subdweller 8 | . . 8 . . . . . . . . . . . . . . . . Samaritan 4 | . . . . . . . . 1 . . . 3 . . . . . . Thug 1 | . . . . . . . 1 . . . . . . . . . . . Butcher 3 | . . . . . . . 3 . . . . . . . . . . . Best Kill Streak 10 | . . 3 4 8 4 7 4 4 . 7 10 4 . 6 4 2 4 5 Combat Bots Only 8 | . . 3 4 8 4 7 4 4 . 7 3 4 . 4 4 2 2 4 Max Kills in Single Turn 4 | . . 2 2 2 1 2 2 1 . 2 2 3 . 1 4 1 1 2 Gunslinging 1 | . . 1 . 1 . 1 1 . . . 1 . . . . . . . Exploded 4 | . . . . . . . . . . 2 . 3 . . 4 . . . Melee . | . . . . . . . . . . . . . . . . . . . Uniques/NPCs Destroyed . | . . . . . . . . . . . . . . . . . . . Combat | -11 -10 -10 -8 -8 -8 -7 -7 -7 -7 -6 -6 -6 -6 -5 -5 -5 -5 -5 -------- Run | Yrd Mat Sub Mat Gar Mat Fac Low Low Dat Pro Fac Low Low Fac Ext Cet Arc Hub Hostile Shots Fired 1523 | . . 57 84 141 77 322 26 66 . 79 181 3 68 70 34 14 4 297 Missed 387 | . . 14 16 21 20 83 10 16 . 30 61 2 18 20 7 5 2 62 Hits 1136 | . . 43 68 120 57 239 16 50 . 49 120 1 50 50 27 9 2 235 Melee 22 | . . . . 6 . 2 4 6 . . . . 4 . . . . . Projectile 1114 | . . 43 68 114 57 237 12 44 . 49 120 1 46 50 27 9 2 235 AOE 1 | . . . . . . . . . . . . . . 1 . . . . Critical Strikes 66 | . . 3 1 7 3 10 1 7 . 1 7 . 1 2 2 1 . 20 Part Disruptions 8 | . . . . . . . . . . . 4 . . . . . . 4 Damage Taken 19314 | . . 764 914 1644 803 2955 293 936 . 997 1574 9 969 832 663 262 49 5650 Core 2253 | . . 140 10 193 97 438 36 89 . 80 225 . 195 174 34 66 . 476 Absorbed by Shields 79 | . . . . . . . . . . . . . . . 46 33 . . Reduced by Siege Mode 257 | . . . . . . . . . . . . . . . . . . 257 Ignored by Resistances 857 | . . . . . . . 44 . . 29 322 4 . 189 14 . . 255 Core Remaining (%) 49 | 100 . 44 . . 45 . . . . 8 . . 50 . . . . . Volleys Fired 847 | . . 44 43 65 62 121 12 30 . 51 194 18 . 47 36 10 27 87 Largest 5 | . . 2 3 3 3 3 3 3 . 3 3 4 . 4 4 4 5 5 Hottest 425 | . . 160 185 210 195 195 187 224 . 224 234 263 . 291 350 350 425 401 Shots Fired 2190 | . . 84 103 183 174 303 36 89 . 81 383 37 . 140 109 38 106 324 Gun 1764 | . . 63 41 162 171 275 36 89 . 51 285 28 . 116 44 6 73 324 Cannon 407 | . . 21 62 21 3 28 . . . 17 98 4 . 24 64 32 33 . Launcher 19 | . . . . . . . . . . 13 . 5 . . 1 . . . Special . | . . . . . . . . . . . . . . . . . . . Kinetic 61 | . . 23 30 8 . . . . . . . . . . . . . . Thermal 2110 | . . 61 73 175 174 303 36 89 . 68 383 32 . 140 108 38 106 324 Explosive 19 | . . . . . . . . . . 13 . 5 . . 1 . . . Electromagnetic . | . . . . . . . . . . . . . . . . . . . Robot Hit Streak 41 | . . 16 16 23 36 41 26 17 . 11 30 21 . 17 14 13 9 22 Robot Miss Streak 8 | . . 6 2 4 3 2 2 4 . 3 3 3 . 6 3 3 4 8 Penetration Max . | . . . . . . . . . . . . . . . . . . . Secondary Targets 35 | . . 1 . 6 . 5 1 4 . 1 4 . . . . . . 13 Max Gunslinging Chain 1 | . . 1 . 1 . 1 1 1 . 1 1 . . . . . . 1 Shots Hit Robots 1366 | . . 60 68 118 131 206 29 68 . 36 209 19 . 78 58 26 59 201 Core Hits 648 | . . 18 28 61 53 88 15 35 . 39 89 15 . 35 39 9 25 99 Critical Kills 8 | . . 1 3 1 . . . . . . 1 . . . . 1 1 . Critical Parts Destroyed 1 | . . 1 . . . . . . . . . . . . . . . . Critical Strikes 76 | . . 3 3 5 8 19 6 2 . 1 13 . . 7 1 3 1 4 Burn 66 | . . 1 . 3 8 19 6 2 . 1 12 . . 7 1 2 . 4 Meltdown 7 | . . 1 3 . . . . . . . 1 . . . . 1 1 . Destroy 3 | . . 1 . 2 . . . . . . . . . . . . . . Melee Attacks 1 | . . . . 1 . . . . . . . . . . . . . . Impact 1 | . . . . 1 . . . . . . . . . . . . . . Slashing . | . . . . . . . . . . . . . . . . . . . Piercing . | . . . . . . . . . . . . . . . . . . . Sneak Attacks . | . . . . . . . . . . . . . . . . . . . Combat Hostiles . | . . . . . . . . . . . . . . . . . . . Follow-up Attacks . | . . . . . . . . . . . . . . . . . . . Damage Inflicted 32582 | . . 1063 1585 2150 2012 3808 533 1387 . 1943 4870 731 11 1920 2150 949 1897 5573 Guns 25539 | . . 740 399 2040 2012 3808 533 1387 . 637 4802 410 . 1603 592 126 1201 5249 Cannons 4777 | . . 323 1186 110 . . . . . . 68 . . 317 1254 823 696 . Explosions 2255 | . . . . . . . . . . 1306 . 321 . . 304 . . 324 Melee . | . . . . . . . . . . . . . . . . . . . Ramming 11 | . . . . . . . . . . . . . 11 . . . . . Kinetic 607 | . . 278 246 83 . . . . . . . . . . . . . . Thermal 29709 | . . 785 1339 2067 2012 3808 533 1387 . 637 4870 410 . 1920 1846 949 1897 5249 Explosive 1931 | . . . . . . . . . . 1306 . 321 . . 304 . . . Electromagnetic 324 | . . . . . . . . . . . . . . . . . . 324 Impact . | . . . . . . . . . . . . . . . . . . . Slashing . | . . . . . . . . . . . . . . . . . . . Piercing . | . . . . . . . . . . . . . . . . . . . Highest Corruption 41 | . . . . . 1 2 2 9 9 16 2 1 6 . . 7 12 41 Average Corruption 4 | . . . . . 1 1 2 3 9 14 1 1 1 . . 7 7 10 Corruption Purged 8 | . . . . . . . . . . . 2 . . . . . 6 . Corruption Blocked . | . . . . . . . . . . . . . . . . . . . Effects 235 | . . . . . 1 42 10 27 4 57 20 7 2 . . 2 18 45 Message Errors 63 | . . . . . . 12 5 8 1 15 6 2 1 . . . 5 8 Matter Fused 48 | . . . . . . 11 1 4 1 9 5 1 1 . . . 3 12 Heat Flow Errors 27 | . . . . . . 5 1 3 . 8 3 1 . . . . 5 1 Energy Discharges 28 | . . . . . 1 6 1 3 . 11 2 1 . . . . 1 2 Parts Rejected 1 | . . . . . . 1 . . . . . . . . . . . . Parts Fused 6 | . . . . . . . 1 1 . 1 . . . . . . . 3 Data Loss (minor) 23 | . . . . . . 3 . 3 1 8 1 1 . . . . 3 3 Data Loss (major) 12 | . . . . . . 2 . 1 . 1 3 1 . . . 1 . 3 Misfires 7 | . . . . . . 1 . 2 . 3 . . . . . . 1 . Alerts 5 | . . . . . . . 1 1 1 . . . . . . 1 . 1 Weapon Failures 15 | . . . . . . 1 . 1 . 1 . . . . . . . 12 Overload Shots . | . . . . . . . . . . . . . . . . . . . Overflow Damage 247 | . . 4 10 . . . . . . 149 4 . . 25 3 . 52 . Projectiles 98 | . . 4 10 . . . . . . . 4 . . 25 3 . 52 . Explosions 149 | . . . . . . . . . . 149 . . . . . . . . Melee . | . . . . . . . . . . . . . . . . . . . Knockbacks 1 | . . 1 . . . . . . . . . . . . . . . . Impact . | . . . . . . . . . . . . . . . . . . . Kinetic 1 | . . 1 . . . . . . . . . . . . . . . . Secondary . | . . . . . . . . . . . . . . . . . . . Self-Inflicted Damage 113 | . . . . . . . . . . 6 . . 5 . . . . 102 Shots 2 | . . . . . . . . . . 1 . . . . . . . 1 Rammed 1 | . . . . . . . . . . . . . 1 . . . . . Targets Rammed 1 | . . . . . . . . . . . . . 1 . . . . . Kicked . | . . . . . . . . . . . . . . . . . . . Crushed . | . . . . . . . . . . . . . . . . . . . Highest Temperature 407 | . . 39 279 407 341 262 208 200 . 217 370 345 . 255 240 302 194 332 Average Temperature 91 | . . 17 120 120 76 61 103 116 . 55 87 117 . 82 95 135 69 100 Received Heat Transfer 4548 | . . 177 387 639 423 933 27 369 . 78 276 . 231 84 148 26 . 750 Effects 13 | . . . 5 5 . . . . . . 2 1 . . . . . . Energy Bleed 4 | . . . 2 1 . . . . . . . 1 . . . . . . Interference 8 | . . . 3 3 . . . . . . 2 . . . . . . . Matter Decay 1 | . . . . 1 . . . . . . . . . . . . . . Siege Activations 7 | . . . . . . . . . . . . . . . . . . 7 Total Turns 127 | . . . . . . . . . . . . . . . . . . 127 Longest Duration 27 | . . . . . . . . . . . . . . . . . . 27 Martial Activations . | . . . . . . . . . . . . . . . . . . . Shielding Activations . | . . . . . . . . . . . . . . . . . . . Robots Disrupted . | . . . . . . . . . . . . . . . . . . . Combat Hostiles . | . . . . . . . . . . . . . . . . . . . Robots Corrupted 3 | . . . . . . . . . . . . . . . . . . 3 Combat Hostiles . | . . . . . . . . . . . . . . . . . . . Parts Fried 9 | . . . . . . . . . . . . . . . 1 . . 8 Impact Corruptions . | . . . . . . . . . . . . . . . . . . . Robots Melted 29 | . . 1 3 . 1 5 . 2 . 1 8 . . 2 . 1 1 4 Combat Hostiles 27 | . . 1 3 . 1 5 . 2 . 1 7 . . 1 . 1 1 4 Parts Melted 172 | . . 5 4 9 16 35 6 9 . 3 37 2 . 14 5 3 7 17 Heat Transferred 55941 | . . 1377 1998 3723 5476 9176 1517 3104 . 1367 10053 703 . 4199 2522 1164 2331 7231 Parts Sabotaged . | . . . . . . . . . . . . . . . . . . . Parts Stolen . | . . . . . . . . . . . . . . . . . . . Parts Stripped . | . . . . . . . . . . . . . . . . . . . Power Chain Reactions . | . . . . . . . . . . . . . . . . . . . Alert | -11 -10 -10 -8 -8 -8 -7 -7 -7 -7 -6 -6 -6 -6 -5 -5 -5 -5 -5 ------- Run | Yrd Mat Sub Mat Gar Mat Fac Low Low Dat Pro Fac Low Low Fac Ext Cet Arc Hub Maximum Alert Level 3 | . . . . 3 2 2 . . . . 1 . . . 2 1 1 3 Low Security (%) 41 | 100 100 . 100 12 . 20 . . . . 64 . . 100 56 . 21 10 Level 1 36 | . . . . 28 37 54 . . . . 35 . . . 29 100 78 18 Level 2 15 | . . . . 24 62 24 . . . . . . . . 13 . . 22 Level 3 5 | . . . . 34 . . . . . . . . . . . . . 48 Level 4 . | . . . . . . . . . . . . . . . . . . . Level 5 . | . . . . . . . . . . . . . . . . . . . High Security . | . . . . . . . . . . . . . . . . . . . Max Security . | . . . . . . . . . . . . . . . . . . . Peak Influence 1095 | . 5 . 152 1083 527 476 . . . . 379 . . 150 524 397 316 1095 Initial 527 | . . . . 83 527 211 . . . . 53 . . . 63 272 96 56 Average 273 | . . . 61 587 416 294 . . . . 157 . . 35 184 314 237 621 Influence Increases 9827 | . 5 125 481 1090 678 1166 70 335 . 611 1127 175 30 334 1179 365 362 1694 Destroy 0b10 Robot/C 5560 | . . 100 320 680 420 760 60 300 . 460 560 140 . 160 600 160 80 760 Destroy 0b10 Robot/NC 385 | . . . 5 5 30 45 . . . 15 125 . . 60 10 10 45 35 Destroy Leader 1010 | . . 10 82 30 126 190 10 20 . 50 178 20 . 34 44 . . 216 Allied During Kill 897 | . . . . . . . . . . 71 . . . . 290 170 125 241 Successful Hack 173 | . 5 . 4 . 18 50 . . . . 53 . . 16 14 9 . 4 Select Force Hacks 30 | . . . . . 30 . . . . . . . . . . . . . Disable Machine 345 | . . . 45 15 . 15 . . . . 45 . . . 15 . 90 120 Anti-Garrison Action 250 | . . . . 250 . . . . . . . . . . . . . . Destroy Structure 592 | . . . 10 20 9 16 . . . . 91 . . 34 116 16 22 258 Partial Spotted 75 | . . . . 15 . 30 . . . . . . . 15 . . . 15 Lose Combat Pursuer 510 | . . 15 15 75 45 60 . 15 . 15 75 15 30 15 90 . . 45 Influence Decreases 8797 | . 5 125 353 135 1295 1166 520 282 69 526 833 551 33 203 822 612 443 824 Entered New Map 1810 | . . . . 45 556 255 173 4 69 . 32 141 2 . 68 216 145 104 Time Decay 5376 | . 5 111 323 . 559 751 347 206 . 386 521 410 11 153 549 326 278 440 Lost Part 956 | . . 14 30 90 30 160 . 72 . 80 130 . 20 50 30 10 . 240 Lost Ally 355 | . . . . . . . . . . 60 . . . . 175 60 20 40 Purge Threat 300 | . . . . . 150 . . . . . 150 . . . . . . . Squads Dispatched 54 | . . . 4 . 3 13 . 1 . 1 14 . 1 2 1 . . 14 Investigation 13 | . . . 2 . 3 3 . . . 1 3 . . . . . . 1 Extermination 16 | . . . . . . 5 . . . . 8 . . 1 . . . 2 Reinforcement 12 | . . . 2 . . 1 . . . . 3 . . 1 1 . . 4 Assault 3 | . . . . . . . . 1 . . . . 1 . . . . 1 Garrison 10 | . . . . . . 4 . . . . . . . . . . . 6 Intercept . | . . . . . . . . . . . . . . . . . . . Searches Triggered . | . . . . . . . . . . . . . . . . . . . Data Miner Redirects 2 | . . . . . . . . . . . 2 . . . . . . . Construction Impeded 3 | . . . . . . . . . . . . . . 1 1 . . 1 Haulers Reinforced . | . . . . . . . . . . . . . . . . . . . Active Scanning Responses . | . . . . . . . . . . . . . . . . . . . Cargo Convoy Interrupts 1 | . . . . . . . . . . . 1 . . . . . . . Stealth | -11 -10 -10 -8 -8 -8 -7 -7 -7 -7 -6 -6 -6 -6 -5 -5 -5 -5 -5 --------- Run | Yrd Mat Sub Mat Gar Mat Fac Low Low Dat Pro Fac Low Low Fac Ext Cet Arc Hub Distress Signals 16 | . . . 3 . 3 3 . . . . . . . 2 1 2 . 2 Communications Jammed 8 | . . . . . . . . . . . 3 . . 5 . . . . Distress Signals 6 | . . . . . . . . . . . 1 . . 5 . . . . Times Spotted 398 | . . 14 25 36 31 54 11 15 . 21 40 5 14 17 38 10 13 54 Peak Tracking Total 14 | . . 3 5 8 5 6 4 5 . 9 4 3 14 5 5 5 2 9 Tactical Retreats 25 | . . 1 1 2 3 3 . 1 . 1 4 1 1 1 4 . . 2 Traps | -11 -10 -10 -8 -8 -8 -7 -7 -7 -7 -6 -6 -6 -6 -5 -5 -5 -5 -5 ------- Run | Yrd Mat Sub Mat Gar Mat Fac Low Low Dat Pro Fac Low Low Fac Ext Cet Arc Hub Traps Triggered 14 | . . 1 2 4 1 2 . . . . 3 . . 1 . . . . Indirectly . | . . . . . . . . . . . . . . . . . . . Trap Hack Attempts . | . . . . . . . . . . . . . . . . . . . Triggered . | . . . . . . . . . . . . . . . . . . . Disarmed . | . . . . . . . . . . . . . . . . . . . Reprogrammed . | . . . . . . . . . . . . . . . . . . . Reused . | . . . . . . . . . . . . . . . . . . . Traps Extracted . | . . . . . . . . . . . . . . . . . . . Installed . | . . . . . . . . . . . . . . . . . . . Triggered . | . . . . . . . . . . . . . . . . . . . Machines | -11 -10 -10 -8 -8 -8 -7 -7 -7 -7 -6 -6 -6 -6 -5 -5 -5 -5 -5 ---------- Run | Yrd Mat Sub Mat Gar Mat Fac Low Low Dat Pro Fac Low Low Fac Ext Cet Arc Hub Machines Disabled 27 | . . 1 3 2 . 1 . . . 2 3 . . . 1 . 6 8 Max in Single Turn 6 | . . 1 1 1 . 1 . . . 1 1 . . . 1 . 1 6 Garrison Access 7 | . . . . . . 3 . . . . 3 . . . . . . 1 Garrison Relay 1 | . . . . 1 . . . . . . . . . . . . . . Network Hub 1 | . . . . . . . . . . . . . . . . . . 1 Machines Repaired . | . . . . . . . . . . . . . . . . . . . Machines Dismantled . | . . . . . . . . . . . . . . . . . . . Machines Sabotaged . | . . . . . . . . . . . . . . . . . . . Overloaded Fab Kills . | . . . . . . . . . . . . . . . . . . . Hacking | -11 -10 -10 -8 -8 -8 -7 -7 -7 -7 -6 -6 -6 -6 -5 -5 -5 -5 -5 --------- Run | Yrd Mat Sub Mat Gar Mat Fac Low Low Dat Pro Fac Low Low Fac Ext Cet Arc Hub Machines Accessed 70 | . 1 1 2 1 7 15 1 3 4 1 20 1 . 3 3 1 . 6 Terminals 39 | . 1 . . 1 5 9 . . . 1 11 . . 3 3 1 . 4 Fabricators 6 | . . . . . . 3 . . . . 3 . . . . . . . Repair Stations . | . . . . . . . . . . . . . . . . . . . Recycling Units 3 | . . . . . 1 . . . . . 2 . . . . . . . Scanalyzers 3 | . . . 1 . 1 . . . . . 1 . . . . . . . Garrison Access 9 | . . . 1 . . 3 . . . . 3 . . . . . . 2 Total Hacks 171 | . 3 1 8 1 21 30 1 7 34 3 38 1 . 4 8 1 . 10 Successful 107 | . 2 1 7 . 9 15 1 7 34 3 17 1 . 1 4 1 . 4 Failed 63 | . 1 . 1 1 11 15 . . . . 21 . . 3 4 . . 6 Catastrophic 17 | . . . . . 2 2 . . . . 7 . . 1 2 . . 3 Database Lockouts 1 | . . . . . 1 . . . . . . . . . . . . . Manual 58 | . 3 . . 1 15 12 . . . . 13 . . 1 6 1 . 6 Terminals 82 | . 3 . . 1 16 16 . . . 3 23 . . 4 8 1 . 7 Fabricators 15 | . . . . . . 9 . . . . 6 . . . . . . . Repair Stations . | . . . . . . . . . . . . . . . . . . . Recycling Units 5 | . . . . . 1 . . . . . 4 . . . . . . . Scanalyzers 13 | . . . 7 . 4 . . . . . 2 . . . . . . . Garrison Access 12 | . . . 1 . . 5 . . . . 3 . . . . . . 3 Terminal Hacks 65 | . 1 1 . . 3 6 1 7 34 3 4 1 . 1 1 1 . 1 Record 19 | . . . . . . . . 5 11 3 . . . . . . . . Part Schematic 15 | . . . . . . 2 . . 13 . . . . . . . . . Robot Schematic 7 | . . . . . . . . . 7 . . . . . . . . . Robot Analysis 2 | . 1 . . . . 1 . . . . . . . . . . . . Prototype ID Bank 3 | . . . . . . . . . 3 . . . . . . . . . Open Door 5 | . . . . . . . 1 2 . . . 1 . . . 1 . . Branch Access Points 2 | . . . . . . 1 . . . . . . . 1 . . . . Recycling Unit Index 1 | . . . . . 1 . . . . . . . . . . . . . Scanalyzer Index 1 | . . . . . 1 . . . . . . . . . . . . . Alert Level 2 | . . . . . . 1 . . . . 1 . . . . . . . Unreport Threat 2 | . . . . . 1 . . . . . 1 . . . . . . . Locate Traps 1 | . . . . . . . . . . . . . . . 1 . . . Zone Layout 4 | . . . . . . 1 . . . . 2 . . . . . . 1 Proto ID Catalog 1 | . . 1 . . . . . . . . . . . . . . . . Fabricator Hacks 7 | . . . . . . 3 . . . . 4 . . . . . . . Load Schematic 5 | . . . . . . 3 . . . . 2 . . . . . . . Build 2 | . . . . . . . . . . . 2 . . . . . . . Repair Station Hacks . | . . . . . . . . . . . . . . . . . . . Recycling Unit Hacks 1 | . . . . . . . . . . . 1 . . . . . . . Retrieve Components 1 | . . . . . . . . . . . 1 . . . . . . . Scanalyzer 12 | . . . 6 . 4 . . . . . 2 . . . . . . . Retrieve Study 12 | . . . 6 . 4 . . . . . 2 . . . . . . . Garrison Access Hacks 8 | . . . 1 . . 3 . . . . 3 . . . . . . 1 Unlock Access 1 | . . . 1 . . . . . . . . . . . . . . . Seal Access 7 | . . . . . . 3 . . . . 3 . . . . . . 1 Unauthorized Hacks 14 | . 1 . . . 2 3 . . . . 3 . . . 3 . . 2 Terminals 11 | . 1 . . . 1 2 . . . . 2 . . . 3 . . 2 Track 2 | . . . . . . . . . . . . . . . 2 . . . Botnet 8 | . 1 . . . 1 2 . . . . 2 . . . 1 . . 1 Skim 1 | . . . . . . . . . . . . . . . . . . 1 Fabricators 2 | . . . . . . 1 . . . . 1 . . . . . . . Report 2 | . . . . . . 1 . . . . 1 . . . . . . . Repair Stations . | . . . . . . . . . . . . . . . . . . . Recycling Units 1 | . . . . . 1 . . . . . . . . . . . . . Tunnel 1 | . . . . . 1 . . . . . . . . . . . . . Scanalyzers . | . . . . . . . . . . . . . . . . . . . Garrison Access . | . . . . . . . . . . . . . . . . . . . Data Cores Recovered . | . . . . . . . . . . . . . . . . . . . Used . | . . . . . . . . . . . . . . . . . . . Hacking Detections 46 | . 1 . . . 5 13 . . . 1 16 . . 3 3 . . 4 Full Trace Events 8 | . . . . . 2 2 . . . 1 3 . . . . . . . Feedback Events 1 | . . . . . 1 . . . . . . . . . . . . . Corruption 1 | . . . . . 1 . . . . . . . . . . . . . Feedback Blocked . | . . . . . . . . . . . . . . . . . . . Robot Schematics Acquired 7 | . . . . . . . . . 7 . . . . . . . . . Robots Built . | . . . . . . . . . . . . . . . . . . . Authchips . | . . . . . . . . . . . . . . . . . . . Time . | . . . . . . . . . . . . . . . . . . . Total Robot Build Rating . | . . . . . . . . . . . . . . . . . . . Part Schematics Acquired 15 | . . . . . . 2 . . 13 . . . . . . . . . Parts Built 4 | . . . . . . . . . . . 4 . . . . . . . Authchips . | . . . . . . . . . . . . . . . . . . . Time 179 | . . . . . . . . . . . 179 . . . . . . . Total Part Build Rating 18 | . . . . . . . . . . . 18 . . . . . . . Part Studies Acquired 12 | . . . 6 . 4 . . . . . 2 . . . . . . . Parts Repaired . | . . . . . . . . . . . . . . . . . . . Time . | . . . . . . . . . . . . . . . . . . . Parts Recycled . | . . . . . . . . . . . . . . . . . . . Recycled Matter . | . . . . . . . . . . . . . . . . . . . Retrieved Matter . | . . . . . . . . . . . . . . . . . . . Retrieved Components . | . . . . . . . . . . . . . . . . . . . Parts Scanalyzed . | . . . . . . . . . . . . . . . . . . . Part Schematics Acquired . | . . . . . . . . . . . . . . . . . . . Parts Damaged . | . . . . . . . . . . . . . . . . . . . Bothacking | -11 -10 -10 -8 -8 -8 -7 -7 -7 -7 -6 -6 -6 -6 -5 -5 -5 -5 -5 ------------ Run | Yrd Mat Sub Mat Gar Mat Fac Low Low Dat Pro Fac Low Low Fac Ext Cet Arc Hub Used RIF Installer . | . . . . . . . . . . . . . . . . . . . Robots Hacked . | . . . . . . . . . . . . . . . . . . . Non-combat . | . . . . . . . . . . . . . . . . . . . Combat . | . . . . . . . . . . . . . . . . . . . Robot Hacks Applied . | . . . . . . . . . . . . . . . . . . . Relay Couplers Released 8 | . . . . 4 . . . . . . . . . . . . . 4 Machine Destruction 4 | . . . . 4 . . . . . . . . . . . . . . Programmers 4 | . . . . . . . . . . . . . . . . . . 4 Fabnet Peak Effective % . | . . . . . . . . . . . . . . . . . . . Robots Rewired 21 | . . . . . . . . 2 . . . . . . 19 . . . Allies Hacked . | . . . . . . . . . . . . . . . . . . . Hacks Repelled . | . . . . . . . . . . . . . . . . . . . Allies | -11 -10 -10 -8 -8 -8 -7 -7 -7 -7 -6 -6 -6 -6 -5 -5 -5 -5 -5 -------- Run | Yrd Mat Sub Mat Gar Mat Fac Low Low Dat Pro Fac Low Low Fac Ext Cet Arc Hub Total Allies 32 | . . . . . . . . 2 . 1 . . . . 24 5 . . Largest Group 17 | . . . . . . . . 2 2 3 . . . . 14 17 15 5 Highest-Rated Group 939 | . . . . . . . . 32 32 128 . . . . 521 939 876 473 Highest-Rated Ally 159 | . . . . . . . . 16 16 96 . . . . 159 159 159 96 Initial Warlord ECA Mod 3 | . . . . . 3 2 2 2 2 1 1 1 1 . . . . . Total Orders 14 | . . . . . . . . . . 2 . . . . . 1 11 . STAY 12 | . . . . . . . . . . 1 . . . . . 1 10 . FOLLOW 1 | . . . . . . . . . . . . . . . . . 1 . AID 1 | . . . . . . . . . . 1 . . . . . . . . Ally Attacks 277 | . . . . . . . . . . 34 . . . . 127 61 18 37 Total Damage 7029 | . . . . . . . . . . 651 . . . . 2932 1766 629 1051 Kills 40 | . . . . . . . . . . 7 . . . . 15 7 2 9 Allies Corrupted 3 | . . . . . . . . . . . . . . . . . . 3 Allies Melted 1 | . . . . . . . . . . . . . . . 1 . . . Intel | -11 -10 -10 -8 -8 -8 -7 -7 -7 -7 -6 -6 -6 -6 -5 -5 -5 -5 -5 ------- Run | Yrd Mat Sub Mat Gar Mat Fac Low Low Dat Pro Fac Low Low Fac Ext Cet Arc Hub Active Infowar (turns) 19220 | . . . . 459 570 3497 1142 1314 193 276 4457 1158 151 929 2645 724 613 1092 Optics 14649 | . . . . . . 955 1142 1064 . . 4176 1158 151 929 2645 724 613 1092 Sensors 4513 | . . . . . . . . . . . 3377 998 138 . . . . . Structural 8295 | . . . . . 570 2129 811 1282 193 276 900 997 149 631 . . . 357 Traps 6426 | . . . . 459 . 3387 . . . . 1377 . . 367 836 . . . Decoding 5832 | . . . . . . . . . . . . . . 870 2645 724 501 1092 Jamming 1930 | . . . . . . . . . . . 1488 . . 211 231 . . . Robot Analysis Total 2 | . 1 . . . . 1 . . . . . . . . . . . . Derelict Logs Recovered 3 | . . . . . . . . 2 . 1 . . . . . . . . Drone Launches . | . . . . . . . . . . . . . . . . . . . Drone Recoveries . | . . . . . . . . . . . . . . . . . . . Decoded 0b10 Intel 43 | . . . . . . . . . . . . . . 15 7 . 3 18 Traps 17 | . . . . . . . . . . . . . . 6 . . . 11 Emergency Access 18 | . . . . . . . . . . . . . . 8 4 . . 6 Exits 8 | . . . . . . . . . . . . . . 1 3 . 3 1 Exploration | -11 -10 -10 -8 -8 -8 -7 -7 -7 -7 -6 -6 -6 -6 -5 -5 -5 -5 -5 ------------- Run | Yrd Mat Sub Mat Gar Mat Fac Low Low Dat Pro Fac Low Low Fac Ext Cet Arc Hub Turns Passed 26371 | 77 64 1694 1155 1836 1641 4018 1142 1314 193 1294 4631 1158 151 929 2645 724 613 1092 Spaces Moved 11768 | 44 33 846 403 681 539 1665 545 577 93 544 2323 843 106 405 1168 274 281 398 Core 3 | 3 . . . . . . . . . . . . . . . . . . Treads 8081 | 41 33 846 403 681 539 1588 545 577 93 544 704 . 6 34 494 274 281 398 Legs . | . . . . . . . . . . . . . . . . . . . Wheels 3684 | . . . . . . 77 . . . . 1619 843 100 371 674 . . . Hover . | . . . . . . . . . . . . . . . . . . . Flight . | . . . . . . . . . . . . . . . . . . . Fastest Speed 50 | 50 160 160 215 215 203 190 200 203 203 203 110 120 131 125 131 162 163 163 Average Speed 180 | 152 160 175 225 218 231 202 200 203 203 203 151 121 138 157 182 191 163 163 Slowest Speed 290 | 160 160 240 246 221 243 245 200 203 203 245 280 131 250 290 217 229 163 163 Overloaded Moves . | . . . . . . . . . . . . . . . . . . . Propulsion Burnouts . | . . . . . . . . . . . . . . . . . . . Robots Hopped . | . . . . . . . . . . . . . . . . . . . Potential Cave-ins 1 | . . . . . . . . . . . . . . . . . . 1 Cave-ins Triggered 1 | . . . . . . . . . . 1 . . . . . . . . Exploration Rate (%) 55 | 4 8 55 40 56 52 49 70 69 68 80 70 78 15 10 89 83 98 51 Regions Visited 18 Branch Regions 11 Pre-discovered Areas 4 | . . . . . 1 . 1 1 1 . . . . . . . . . Known Exits Taken 9 | . . . 1 . . 1 . . . . 1 1 1 1 1 1 1 . Unknown Exits Taken 8 | 1 1 1 . . 1 . 1 1 1 1 . . . . . . . . Scrap Searched 30 | . . 12 . . . . 2 5 . 4 . 4 3 . . . . . Spaces Dug 113 | . . . . . 2 10 . . . 11 66 3 . 4 4 . . 13 Terrain Destroyed 592 | . . . 7 . 3 10 . . . 134 93 71 . 13 49 5 10 197 Melee . | . . . . . . . . . . . . . . . . . . . Projectile 218 | . . . 7 . 3 10 . . . 17 93 4 . 13 21 5 10 35 AOE 374 | . . . . . . . . . . 117 . 67 . . 28 . . 162 Terrain Rammed . | . . . . . . . . . . . . . . . . . . . Walls Destroyed . | . . . . . . . . . . . . . . . . . . . Machines Disabled . | . . . . . . . . . . . . . . . . . . . Actions | -11 -10 -10 -8 -8 -8 -7 -7 -7 -7 -6 -6 -6 -6 -5 -5 -5 -5 -5 --------- Run | Yrd Mat Sub Mat Gar Mat Fac Low Low Dat Pro Fac Low Low Fac Ext Cet Arc Hub Total 15157 | 51 44 975 568 882 801 2051 572 650 98 656 3084 939 110 600 1609 455 378 634 Wait 1416 | . 12 40 61 71 130 105 2 5 . 28 381 48 . 100 140 137 59 97 Move 11751 | 43 32 845 403 680 538 1664 544 576 92 543 2322 842 105 404 1167 273 280 398 Hop . | . . . . . . . . . . . . . . . . . . . Pick Up 192 | 2 . 21 25 15 15 30 3 10 . 6 22 1 . 9 17 7 3 6 Fast Attach 89 | 6 . 4 2 . 2 14 . 3 3 3 21 4 . 9 5 6 1 6 Attach 119 | . . 3 10 11 7 19 1 8 . 8 11 1 2 9 5 4 3 17 Detach 16 | . . 1 . . . . . . . 2 5 . . 3 . 2 . 3 Swap 318 | . . 5 9 21 24 69 6 1 . 11 89 22 2 15 30 3 1 10 Drop 187 | . . 12 15 9 23 27 4 4 3 4 31 3 . 4 21 13 4 10 Fire 847 | . . 44 43 65 62 121 12 30 . 51 194 18 . 47 36 10 27 87 Melee 1 | . . . . 1 . . . . . . . . . . . . . . Ram 1 | . . . . . . . . . . . . . 1 . . . . . Kick . | . . . . . . . . . . . . . . . . . . . Crush . | . . . . . . . . . . . . . . . . . . . Escape Stasis 18 | . . . . 8 . 2 . . . . 8 . . . . . . . Rewire 201 | . . . . . . . . 13 . . . . . . 188 . . . Trap . | . . . . . . . . . . . . . . . . . . . Miscellaneous 1 | . . . . 1 . . . . . . . . . . . . . . Route ------- -11/Scrapyard -10/Materials -10/Subcaves -8/Materials (discovered 3 exits: *Fac / [*Sto] / Gar) -8/Garrison (discovered 3 exits: *Mat x3) -8/Materials (discovered 2 exits: *Fac x2) -7/Factory (discovered 4 exits: *Fac x2 / *Low x2) -7/Lower Caves -7/Lower Caves (discovered 2 exits: *Fac / *Dat) -7/Data Miner -6/Proximity Caves -6/Factory (discovered 3 exits: *Fac x2 / *Low) -6/Lower Caves -6/Lower Caves -5/Factory (discovered 5 exits: *Fac / Upp x2 / *Ext x2) -5/Extension (discovered 3 exits: *Fac x2 / *Cet) -5/Cetus (discovered 2 exits: *Fac / *Arc) -5/Archives (discovered 3 exits: *Fac / *Hub x2) -5/Hub_04(d) (discovered 3 exits: *Fac x3) History --------- Turn | Location | Event 2 | -11/Scrapyard | Met Revision 17 20 | -11/Scrapyard | Discovered new exit (range 16) 78 | -11/Scrapyard | Entered Materials 131 | -10/Materials | Discovered new exit (range 4) 142 | -10/Materials | Entered Subcaves 143 | -10/Subcaves | Approached by a straggling Scientist 144 | -10/Subcaves | Shifting Twisted Machinery released Flamer 307 | -10/Subcaves | Build established: Mutant 500 | -10/Subcaves | Visited 4L-MR0's lab 524 | -10/Subcaves | Found Meta Core 648 | -10/Subcaves | Shifting Twisted Machinery released Hvy. Battle Rifle 653 | -10/Subcaves | Shifting Twisted Machinery released Hvy. Riot Gun 1328 | -10/Subcaves | Disturbed a concealed Subdweller 1337 | -10/Subcaves | Core integrity fell below 50% 1642 | -10/Subcaves | Build established: Scavenger-Mutant 1783 | -10/Subcaves | Discovered new exit (range 15) 1836 | -10/Subcaves | Entered Materials 1836 | -8/Materials | Evolved 4 slots: Propulsion x1, Utility x2, Weapon x1 1970 | -8/Materials | Discovered new exit (range 16) 2209 | -8/Materials | Build established: Subdweller-Tank 2500 | -8/Materials | Discovered new exit (range 13) 2599 | -8/Materials | Build established: Scavenger-Tank 2991 | -8/Materials | Identified exit to Garrison 2991 | -8/Materials | Entered Garrison 3057 | -8/Garrison | Triggered checkpoint 3247 | -8/Garrison | Triggered checkpoint 3319 | -8/Garrison | Triggered checkpoint 3383 | -8/Garrison | Triggered checkpoint 3544 | -8/Garrison | Discovered new exit (range 14) 3732 | -8/Garrison | Triggered checkpoint 3779 | -8/Garrison | Destroyed 8 combat bots 3786 | -8/Garrison | Lost 5 parts (3n2u) 3889 | -8/Garrison | Triggered checkpoint 4023 | -8/Garrison | Discovered new exit (range 10) 4115 | -8/Garrison | Triggered checkpoint 4192 | -8/Garrison | Discovered new exit (range 8) 4239 | -8/Garrison | Triggered checkpoint 4263 | -8/Garrison | Garrison Relay disabled 4337 | -8/Garrison | Triggered checkpoint 4609 | -8/Garrison | Triggered checkpoint 4640 | -8/Garrison | Build established: Scavenger-Gunner 4827 | -8/Garrison | Entered Materials 6041 | -8/Materials | Discovered new exit (range 11) 6316 | -8/Materials | Central database locked down 6320 | -8/Materials | Discovered new exit (range 16) 6406 | -8/Materials | Core integrity fell below 50% 6468 | -8/Materials | Entered Factory 6468 | -7/Factory | Evolved 2 slots: Utility x2 6700 | -7/Factory | Lost 3 parts (1p1n1w) 7037 | -7/Factory | Discovered new exit (range 16) 7204 | -7/Factory | Discovered new exit (range 6) 7494 | -7/Factory | Garrison activated, responded to threat 7515 | -7/Factory | Discovered new exit (range 13) 7564 | -7/Factory | Destroyed 7 combat bots 7573 | -7/Factory | Lost 5 parts (2n1u2w) 7678 | -7/Factory | Build established: Hacker-Gunner 8223 | -7/Factory | Found Prototype Launcher 8223 | -7/Factory | Identified Rocket Array 8236 | -7/Factory | Found Faulty Rocket Array 8958 | -7/Factory | Identified exit to Lower Caves 9269 | -7/Factory | Garrison activated, responded to threat 9290 | -7/Factory | Core integrity fell below 50% 9443 | -7/Factory | Lost 5 parts (1p3u1w) 9613 | -7/Factory | Build established: Scientist-Gunner 10273 | -7/Factory | Build established: Gunner 10486 | -7/Factory | Entered Lower Caves 10492 | -7/Lower Caves | Met a Warlord Commander 10493 | -7/Lower Caves | Learned location of Warlord (-5) 10494 | -7/Lower Caves | Warlord Commander delivered Encrypted Comm Array 10639 | -7/Lower Caves | Encountered a Warlord checkpoint 11307 | -7/Lower Caves | Ambushed by wild Derelicts 11502 | -7/Lower Caves | Found DCF Scrap (13 items) 11512 | -7/Lower Caves | Discovered new exit (range 14) 11538 | -7/Lower Caves | Found DRS Beacon 11628 | -7/Lower Caves | Entered another Lower Caves area 11675 | -7/Lower Caves | Lost 5 parts (1n3u1w) 11695 | -7/Lower Caves | Encountered a Warlord checkpoint 11722 | -7/Lower Caves | Discovered new exit (range 19) 11974 | -7/Lower Caves | Learned Factory emergency access door positions 12224 | -7/Lower Caves | Found DCF Scrap (15 items) 12339 | -7/Lower Caves | Entered an active Warlord outpost 12357 | -7/Lower Caves | Learned Extension trap positions 12357 | -7/Lower Caves | Learned Extension security intel 12535 | -7/Lower Caves | Discovered new exit (range 11) 12674 | -7/Lower Caves | Attracted the attention of an 0b10 outpost 12700 | -7/Lower Caves | Core integrity fell below 20% 12709 | -7/Lower Caves | Learned location of 1 exit from Factory 12942 | -7/Lower Caves | Entered Data Miner 12942 | -7/Data Miner | Accompanied by 2 allies 12944 | -7/Data Miner | Discovered new exit (range 6) 12983 | -7/Data Miner | Met Data Miner 13019 | -7/Data Miner | Learned location of Section 7 (-2) 13019 | -7/Data Miner | Acquired the access code to Warlord's prototype stash 13056 | -7/Data Miner | Received God Mode back door access code from Data Miner 13135 | -7/Data Miner | Entered Proximity Caves 13135 | -6/Proximity Caves | Accompanied by 2 allies 13286 | -6/Proximity Caves | Escorted by Enhanced Grunt 13354 | -6/Proximity Caves | Attracted the attention of an 0b10 base 13401 | -6/Proximity Caves | Destroyed 7 combat bots 13411 | -6/Proximity Caves | Crushed by falling debris 13411 | -6/Proximity Caves | System corruption reached 10% 13426 | -6/Proximity Caves | Learned Extension garrison access intel 13426 | -6/Proximity Caves | Learned Extension terminal intel 13426 | -6/Proximity Caves | Learned Armory security intel 13681 | -6/Proximity Caves | Learned Factory trap positions 13820 | -6/Proximity Caves | Attracted the attention of an 0b10 checkpoint 14017 | -6/Proximity Caves | Lost 4 parts (1p2n1w) 14283 | -6/Proximity Caves | Discovered new exit (range 9) 14429 | -6/Proximity Caves | Entered Factory 14429 | -6/Factory | Evolved 2 slots: Power x1, Propulsion x1 14430 | -6/Factory | Identified exit to Factory 14431 | -6/Factory | Loaded intel: 104 trap records 14728 | -6/Factory | Build established: Scavenger-Gunner 15302 | -6/Factory | Build established: Skirmisher 15635 | -6/Factory | Cargo convoy interrupted 16807 | -6/Factory | Build established: Scavenger-Skirmisher 18332 | -6/Factory | Incoming investigation squad redirected 18386 | -6/Factory | Fabricated Cryofiber Web (x2) 18434 | -6/Factory | Discovered exit to Factory (range 22) 18688 | -6/Factory | Incoming investigation squad redirected 18769 | -6/Factory | Fabricated Wave Gun (x2) 18825 | -6/Factory | Lost 4 parts (3n1w) 18948 | -6/Factory | Discovered new exit (range 22) 19036 | -6/Factory | Lost 4 parts (1p2n1u) 19059 | -6/Factory | Identified exit to Lower Caves 19060 | -6/Factory | Entered Lower Caves 19569 | -6/Lower Caves | Found Alien Artifact 19569 | -6/Lower Caves | Identified Core Expander 19569 | -6/Lower Caves | Installed Core Expander, added new Weapon slot 19968 | -6/Lower Caves | Encountered a Warlord checkpoint 20075 | -6/Lower Caves | Lost 3 allies 20152 | -6/Lower Caves | Discovered new exit (range 14) 20196 | -6/Lower Caves | Identified exit to Lower Caves 20218 | -6/Lower Caves | Entered another Lower Caves area 20228 | -6/Lower Caves | Encountered a Warlord checkpoint 20299 | -6/Lower Caves | Discovered exit to Factory (range 16) 20334 | -6/Lower Caves | Attracted the attention of an 0b10 outpost 20369 | -6/Lower Caves | Entered Factory 20369 | -5/Factory | Evolved 2 slots: Utility x2 20394 | -5/Factory | Lost 7 parts (1p3n2u1w) 20653 | -5/Factory | Identified exit to Upper Caves 20653 | -5/Factory | Identified exit to Extension 20980 | -5/Factory | Identified exit to Factory 21132 | -5/Factory | Lost 3 parts (1p2n) 21298 | -5/Factory | Entered Extension 21299 | -5/Extension | Loaded intel: 20 trap records 21301 | -5/Extension | Loaded intel: 9 terminal locations 21585 | -5/Extension | Build established: Scavenger-Gunner 22068 | -5/Extension | Rescued a captive Derelict 22070 | -5/Extension | Rescued a captive Derelict 22216 | -5/Extension | Rescued a captive Derelict 22222 | -5/Extension | Rescued a captive Derelict 22416 | -5/Extension | Spotted B-75 Beast 22428 | -5/Extension | Destroyed B-75 Beast 22435 | -5/Extension | Spotted B-75 Beast 22461 | -5/Extension | Allies destroyed B-75 Beast 22499 | -5/Extension | Lost 4 allies 22734 | -5/Extension | Rescued A7 22997 | -5/Extension | Lost 4 allies 23164 | -5/Extension | Identified exit to Cetus 23642 | -5/Extension | Build established: Commander-Gunner 23943 | -5/Extension | Entered Cetus 23943 | -5/Cetus | Accompanied by 14 allies (A7) 23948 | -5/Cetus | Acquired a Cetus Manufacturing Module code from A7 23963 | -5/Cetus | Spotted Cetus Guard 23964 | -5/Cetus | Spotted Cetus Guard 23964 | -5/Cetus | Spotted Cetus Guard 23968 | -5/Cetus | Spotted Cetus Guard 23971 | -5/Cetus | Destroyed Cetus Guard 23980 | -5/Cetus | Allies destroyed Cetus Guard 23982 | -5/Cetus | Destroyed Cetus Guard 23988 | -5/Cetus | Allies destroyed Cetus Guard 24084 | -5/Cetus | Escorted A7 to Cetus Mainframe 24100 | -5/Cetus | Started Cetus Manufacturing Module 24115 | -5/Cetus | Discovered new exit (range 22) 24125 | -5/Cetus | Manufactured an Enhanced Grunt 24150 | -5/Cetus | Manufactured an Enhanced Grunt 24175 | -5/Cetus | Manufactured an Enhanced Grunt 24200 | -5/Cetus | Manufactured an Enhanced Grunt 24225 | -5/Cetus | Manufactured an Enhanced Grunt 24266 | -5/Cetus | Spotted Cetus Guard 24268 | -5/Cetus | Spotted Cetus Guard 24270 | -5/Cetus | Spotted Cetus Guard 24275 | -5/Cetus | Destroyed Cetus Guard 24278 | -5/Cetus | Spotted Cetus Guard 24285 | -5/Cetus | Allies destroyed Cetus Guard 24295 | -5/Cetus | Allies destroyed Cetus Guard 24297 | -5/Cetus | Allies destroyed Cetus Guard 24302 | -5/Cetus | Discovered exit to Factory (range 22) 24326 | -5/Cetus | Met Revision 17 24342 | -5/Cetus | Attached Meta Core, gained temporary slots: Propulsion, Utility, Weapon 24638 | -5/Cetus | Identified exit to Archives 24667 | -5/Cetus | Entered Archives 24667 | -5/Archives | Accompanied by 15 allies (A7) 24671 | -5/Archives | Identified exit to Hub_04(d) 24672 | -5/Archives | Received a hacking code to weaken MAIN.C 24768 | -5/Archives | System corruption reached 10% 25069 | -5/Archives | Build established: Commander-Tank 25280 | -5/Archives | Entered Hub_04(d) 25280 | -5/Hub_04(d) | Accompanied by 5 allies 25289 | -5/Hub_04(d) | Watched by a mysterious "MATRIX" hacker 25572 | -5/Hub_04(d) | Build established: Scavenger-Tank 25612 | -5/Hub_04(d) | Found Prototype Device 25612 | -5/Hub_04(d) | Identified Exp. Thermal Shield 25664 | -5/Hub_04(d) | Discovered exit to Factory (range 20) 25755 | -5/Hub_04(d) | Discovered exit to Factory (range 19) 25796 | -5/Hub_04(d) | Network Hub disabled 25798 | -5/Hub_04(d) | Spotted Lightning 25800 | -5/Hub_04(d) | Spotted Lightning 25819 | -5/Hub_04(d) | Spotted Lightning 25836 | -5/Hub_04(d) | Lost 4 allies 25871 | -5/Hub_04(d) | Destroyed Lightning 25880 | -5/Hub_04(d) | First assault squad dispatched 25919 | -5/Hub_04(d) | Found Prototype Device 25919 | -5/Hub_04(d) | Identified Exp. Phase Shifter 26040 | -5/Hub_04(d) | Garrison activated, responded to threat 26277 | -5/Hub_04(d) | Spotted Lightning 26277 | -5/Hub_04(d) | Spotted Lightning 26277 | -5/Hub_04(d) | Spotted Lightning 26314 | -5/Hub_04(d) | Core integrity fell below 50% 26326 | -5/Hub_04(d) | System corruption reached 30% 26339 | -5/Hub_04(d) | Destroyed Lightning 26368 | -5/Hub_04(d) | Destroyed Lightning 26372 | -5/Hub_04(d) | Self-destructed Last Messages --------------- 26348_ ALERT: Construction progress impeded, dispatching reinforcements to local area. 26350_ K-01 Serf collects debris. 26352_ U-05 Engineer builds a Wall. 26352_ Penetrated by EMDS Slug. 26354_ System corrupted: Matter fused (-6). 26354_ K-01 Serf collects debris. 26355_ K-01 Serf destroyed. 26358_ Penetrated by EMDS Slug. 26360_ U-05 Engineer exits level. 26360_ K-01 Serf exits level. 26365_ Penetrated by EMDS Slug. 26365_ Quantum Reactor destroyed. 26366_ >> DECODED: Shock Trap location. 26366_ Penetrated by EMDS Slug. 26366_ Hvy. Beamcaster destroyed. 26366_ Centrium Medium Armor Plating destroyed. 26368_ Lightning destroyed. 26368_ Switching to secondary target: X-72 Disruptor. Map ----- +----------------------------------------------------+ | ?## |%=#! % = ## ##?#### ???????? | | ?## !%######%!## ##### # ### #### # | | ?## %=#=%! #[!##* #####"#+###+####+# | | ?## =#]] =+=%#######+### # | | ?## [#= [#[|!%^%^^% # # | | ?############%%*%#]!%^*==! !! /% + | | ?############=% #%[==^^ ! #! # | | ??????????###=[* #%=[/=% # # | | ??????????###*%[ #* != !!! # ] # | | ??????????###==% # % [ !! # # | | ???????????##= # *[[ !! ! # # | | ???????????## # ! ###### ! # | | ???????????##! # %! # #####"############ | | ????????????#%! # [ R + ################## | | ????????????# #%% # #### ######## | | ??#############+## ### #==! + / """ + | | ??# # ## # ! #### # ###### | | ??# %+% % ##% # ! ### "T" *# ### | | ??# """ """ """ #[!<*## # [#### """ # ### " | | ??# """G""" # !=!## # + + # ### " | | ??################ ####Rx# #####+##+## ### " | | ??????????????####+#### !# #?### ### " | | ???????????????# #*i# #??##### ### | | ???????????????# " !! #=%# #??##### ### " | | ???????????????# " !! #%=######?????## / " | | ???????????????# " #@!############# / ### " | | ???????????????# %+=%## ###=$% ### " | | ???????????????# ! *=#%!## ### ### | | ???????????????########%h## ### ##+##"### | | ???????????????????###!!!!# """" ### # #### | | ?????????????????????# !!*# """" ### #! " # | | ?????????????????????# <=+ """" ### # T # | | ?????????????????????# # """" ###=# " # | | ?????????????????????## ## / %+ # | | ??????????????????????# ## # !# [ # " | | ??????????????????????# ###+##+??## # [ # "" | | ??????????????????????# # ??? + + # " | | ??????????????????????# #???" ??? ##### # | | ??????????????????????# #???? ??? ########## | | ??????????????????????? #?????"??????####### [ | | ??????????????????????? +????? ???????????## | | ??????????????????????? #?????? ??????????##### | | ??????????????????????? #?????????????????##### | | ??????????????????????? #?????????????????????? | | ??????????????????????? #?????????????????????? | | ??????????????????????? ??????????????????????? | | ??????????????????????? ?????+????????????????? | | ??????????????????????? ??????????????????????? | | ??????????????????????? ??????^?^?????????????? | | ???????????????????????????????????????????????? | +----------------------------------------------------+ Best States ------------- Heat Dissipation 168 Coolant Potential 65 Energy Generation 37 Energy Capacity 530 Matter Stores 300 Matter Capacity 300 Sight Range 22 Robot Scan Range 15 Terrain Scan Density 10 Jamming Range 12 Base Temperature (-) 100 Armor Coverage 800 Resistance: KI 30 Resistance: TH 20 Resistance: EM 25 Phase Shifting 20 Evasion (%) 40 Targeting Accuracy 8 Core Analysis 6 Recoil Reduction 5 Particle Charging 20 Offensive Hacking 20 Item Schematics ----------------- Cryofiber Web | -7/Factory | Hacked Arm. Medium Treads | -7/Factory | Hacked Combat Drone Bay | -7/Data Miner | Free Lgt. Regenerative Plating | -7/Data Miner | Free Cld. Cesium-ion Thruster | -7/Data Miner | Free Gravity Neutralizer | -7/Data Miner | Free Cld. Plasma Cannon | -7/Data Miner | Free Thunder Leg | -7/Data Miner | Free Imp. Weapon Cycler | -7/Data Miner | Free Wave Gun | -7/Data Miner | Free Matter Compressor | -7/Data Miner | Free Hvy. Phase Cannon | -7/Data Miner | Free Imp. Kinecellerator | -7/Data Miner | Free Hardcell Cannon | -7/Data Miner | Free Adv. Medium Treads | -7/Data Miner | Free Robot Schematics ------------------ L-41 Fighter | -7/Data Miner | Free A-15 Conveyor | -7/Data Miner | Free O-24 Administrator | -7/Data Miner | Free R-10 Processor | -7/Data Miner | Free S-27 Virus | -7/Data Miner | Free B-60 Warrior | -7/Data Miner | Free B-48 Gladiator | -7/Data Miner | Free Fabricated ------------ Cryofiber Web | x2 | -6/Factory Wave Gun | x2 | -6/Factory Repaired ---------- Nothing Studied --------- Hvy. Assault Rifle | -8/Materials | Hacked Particle Gun | -8/Materials | Hacked Lgt. Nuclear Core | -8/Materials | Hacked Imp. Treads | -8/Materials | Hacked Adv. Treads | -8/Materials | Hacked Imp. Ion Engine | -8/Materials | Hacked Lgt. Treads | -8/Materials | Hacked Field Laser | -8/Materials | Hacked Arm. Treads | -8/Materials | Hacked Hvy. Particle Cannon | -8/Materials | Hacked Hvy. Laser | -6/Factory | Hacked Imp. Deuterium Engine | -6/Factory | Hacked Alien Tech Used ----------------- Core Expander Achievements -------------- None Challenges ------------ None Game ------ Seed PlexusPoweredDatajack Manual? 0 Play Time 03:28:07 Cumulative 352.7 hours Start 2026.09.07 @ 22:14:01 End 2026.09.08 @ 14:32:34 Sessions 9 Manual Loads 0 Difficulty Rogue Special Mode None Game No. 330 Rogue 276 Adventurer 54 Explorer 0 Win Type - Total 18 Types 12/1/1/1/1/0/0/1/0/1 Lore% 81 Gallery% 69 Achievement% 65 Wizard Run 0 Options --------- Layout 1 ASCII 0 Keyboard 0 Movement Mouse Keybinds 1 Fullscreen 2 Font 32/Tamsyn Map View 50x35 Zoom Use 0% Tactical HUD 1 Map Filters NONE Filters NONE Steam 1 RUN: 2127944c-f4c9-451b-b0e9-6916568d44c0